fUST/lending_fUST_20250619
["ID","MTS","AMOUNT","RATE_DAILY","PERIOD"]
[366490641,1750288234828,-500.0,0.00021917,6]
[366490642,1750288234837,-460.0,0.00021917,6]
[366490643,1750288234846,-151.0,0.00021917,6]
[366490644,1750288234856,-460.0,0.00021917,6]
[366490645,1750288234865,-460.0,0.00021917,6]
[366490646,1750288234874,-151.0,0.00021917,6]
[366490647,1750288234883,-460.0,0.00021917,6]
[366490648,1750288234892,-151.0,0.00021917,6]
[366490649,1750288234901,-151.0,0.00021917,2]
[366490650,1750288234910,-460.0,0.00021917,6]
[366490651,1750288234919,-460.0,0.00021917,6]
[366490652,1750288234928,-460.0,0.00021917,6]
[366490653,1750288234937,-460.0,0.00021917,6]
[366490654,1750288234947,-601.11,0.00021917,6]
[366490655,1750288234957,-151.0,0.00021917,6]
[366490656,1750288234966,-460.0,0.00021917,6]
[366490657,1750288234975,-151.0,0.00021917,2]
[366490658,1750288234984,-460.0,0.00021917,6]
[366490659,1750288234994,-198.0,0.00021917,6]
[366490660,1750288235003,-460.0,0.00021917,6]
[366490661,1750288235012,-440.0,0.00021917,6]
[366490662,1750288235022,-151.0,0.00021917,6]
[366490663,1750288235031,-151.0,0.00021917,2]
[366490664,1750288235041,-704.51,0.00021917,6]
[366490665,1750288235050,-460.0,0.00021917,6]
[366490666,1750288235059,-2913.28,0.00021917,6]
[366490667,1750288235068,-500.0,0.00021917,6]
[366490668,1750288235078,-3593.9,0.00021917,6]
[366490669,1750288235087,-460.0,0.00021917,6]
[366490670,1750288235096,-3761.47,0.00021917,6]
[366490671,1750288235106,-447.32624458,0.00021917,6]
[366490672,1750288235115,-1278.45,0.00021917,6]
[366490673,1750288235124,-290.0,0.00021917,6]
[366490674,1750288235133,-430.0,0.00021917,6]
[366490675,1750288235141,-460.0,0.00021917,6]
[366490676,1750288235151,-460.0,0.00021917,6]
[366490677,1750288235159,-460.0,0.00021917,6]
[366490678,1750288235168,-842.53,0.00021917,6]
[366490679,1750288235177,-460.0,0.00021917,6]
[366490680,1750288235186,-460.0,0.00021917,6]
[366490681,1750288235195,-460.0,0.00021917,6]
[366490682,1750288235203,-460.0,0.00021917,6]
[366490683,1750288235212,-460.0,0.00021917,6]
[366490684,1750288235221,-518.80137931,0.00021917,6]
[366490685,1750288235229,-500.2,0.00021917,6]
[366490686,1750288235238,-612.61,0.00021917,6]
[366490687,1750288235247,-982.38,0.00021917,6]
[366490688,1750288235256,-460.0,0.00021917,6]
[366490689,1750288235265,-460.0,0.00021917,6]
[366490690,1750288235274,-243.19832708,0.00021917,6]
[366490691,1750288235283,-460.0,0.00021917,6]
[366490692,1750288235293,-460.0,0.00021917,6]
[366490693,1750288235302,-460.0,0.00021917,6]
[366490694,1750288235311,-460.0,0.00021917,6]
[366490695,1750288235320,-1659.42345641,0.00021917,6]
[366490719,1750288238616,-464.97654359,0.00021917,6]
[366490721,1750288238626,-561.15,0.00021917,6]
[366490723,1750288238635,-460.0,0.00021917,6]
[366490725,1750288238645,-460.0,0.00021917,6]
[366490727,1750288238654,-460.0,0.00021917,6]
[366490728,1750288238663,-680.8,0.00021917,6]
[366490730,1750288238673,-460.0,0.00021917,6]
[366490731,1750288238681,-460.0,0.00021917,6]
[366490732,1750288238690,-178.19988932,0.00021917,6]
[366490733,1750288238701,-460.0,0.00021917,6]
[366490734,1750288238710,-530.15,0.00021917,6]
[366490735,1750288238719,-460.0,0.00021917,6]
[366490736,1750288238730,-2681.74,0.00021917,6]
[366490737,1750288238739,-460.0,0.00021917,6]
[366490738,1750288238747,-460.0,0.00021917,6]
[366490739,1750288238756,-460.0,0.00021917,6]
[366490740,1750288238766,-490.68514741,0.00021917,6]
[366490741,1750288238775,-460.0,0.00021917,6]
[366490742,1750288238785,-460.0,0.00021917,6]
[366490743,1750288238794,-1450.7,0.00021917,6]
[366490744,1750288238803,-290.0,0.00021917,6]
[366490745,1750288238812,-460.0,0.00021917,6]
[366490746,1750288238822,-460.0,0.00021917,6]
[366490747,1750288238831,-280.0,0.00021917,6]
[366490748,1750288238839,-460.0,0.00021917,6]
[366490749,1750288238850,-460.0,0.00021917,6]
[366490750,1750288238858,-460.0,0.00021917,6]
[366490751,1750288238867,-1370.09,0.00021917,6]
[366490752,1750288238876,-460.0,0.00021917,6]
[366490753,1750288238885,-460.0,0.00021917,6]
[366490754,1750288238895,-460.0,0.00021917,6]
[366490755,1750288238905,-460.0,0.00021917,6]
[366490756,1750288238914,-460.0,0.00021917,6]
[366490757,1750288238928,-338.98972192,0.00021917,6]
[366490758,1750288238937,-1428.41,0.00021917,6]
[366490759,1750288238947,-528.69,0.00021917,6]
[366490760,1750288238956,-514.49,0.00021917,6]
[366490761,1750288238965,-460.0,0.00021917,6]
[366490762,1750288238975,-460.0,0.00021917,6]
[366490763,1750288238985,-210.42,0.00021917,6]
[366490764,1750288238994,-460.0,0.00021917,6]
[366490765,1750288239004,-400.0,0.00021917,6]
[366490766,1750288239013,-460.0,0.00021917,6]
[366490767,1750288239023,-460.0,0.00021917,6]
[366490768,1750288239032,-717.35,0.00021917,6]
[366490769,1750288239042,-2477.32,0.00021917,6]
[366490770,1750288239051,-1820.15,0.00021917,6]
[366490771,1750288239060,-380.0,0.00021917,6]
[366490772,1750288239070,-460.0,0.00021917,6]
[366490773,1750288239079,-190.0,0.00021917,6]
[366490774,1750288239089,-460.0,0.00021917,6]
[366490775,1750288239098,-340.0,0.00021917,6]
[366490776,1750288239108,-460.0,0.00021917,6]
[366490777,1750288239118,-460.0,0.00021917,6]
[366490778,1750288239127,-460.0,0.00021917,6]
[366490779,1750288239136,-460.0,0.00021917,6]
[366490780,1750288239146,-370.0,0.00021917,6]
[366490781,1750288239155,-460.0,0.00021917,6]
[366490782,1750288239165,-460.0,0.00021917,6]
[366490783,1750288239174,-1294.92,0.00021917,6]
[366490784,1750288239183,-460.0,0.00021917,6]
[366490785,1750288239193,-460.0,0.00021917,6]
[366490786,1750288239202,-589.19,0.00021917,2]
[366490787,1750288239211,-460.0,0.00021917,6]
[366490788,1750288239220,-440.0,0.00021917,6]
[366490789,1750288239229,-460.0,0.00021917,6]
[366490790,1750288239386,-460.0,0.00021917,6]
[366490791,1750288239397,-460.0,0.00021917,6]
[366490792,1750288239407,-746.06,0.00021917,6]
[366490793,1750288239419,-460.0,0.00021917,6]
[366490794,1750288239429,-460.0,0.00021917,6]
[366490795,1750288239438,-167.49552826,0.00021917,6]
[366490796,1750288239447,-460.0,0.00021917,6]
[366490797,1750288239458,-887.24,0.00021917,6]
[366490798,1750288239467,-438.57017707,0.00021917,6]
[366490799,1750288239477,-1211.57,0.00021917,6]
[366490800,1750288239487,-1667.65,0.00021917,6]
[366490801,1750288239497,-323.02470976,0.00021917,6]
[366490802,1750288239506,-460.0,0.00021917,6]
[366490803,1750288239515,-430.0,0.00021917,6]
[366490804,1750288239525,-225.85974949,0.00021917,6]
[366490805,1750288239534,-460.0,0.00021917,6]
[366490806,1750288239544,-460.0,0.00021917,6]
[366490807,1750288239553,-460.0,0.00021917,6]
[366490808,1750288239563,-430.0,0.00021917,6]
[366490809,1750288239573,-297.96637653,0.00021917,6]
[366490810,1750288239582,-460.0,0.00021917,6]
[366490811,1750288239591,-460.0,0.00021917,6]
[366490812,1750288239601,-460.0,0.00021917,6]
[366490813,1750288239611,-460.0,0.00021917,6]
[366490814,1750288239620,-5401.48,0.00021917,6]
[366490815,1750288239630,-494.64,0.00021917,6]
[366490816,1750288239639,-460.0,0.00021917,6]
[366490817,1750288239648,-460.0,0.00021917,6]
[366490818,1750288239657,-534.70975956,0.00021917,6]
[366490819,1750288239666,-460.0,0.00021917,6]
[366490820,1750288239675,-500.0,0.00021917,6]
[366490821,1750288239685,-746.12,0.00021917,6]
[366490822,1750288239694,-151.0,0.00021917,6]
[366490823,1750288239703,-460.0,0.00021917,6]
[366490824,1750288239713,-460.0,0.00021917,6]
[366490825,1750288239722,-460.0,0.00021917,6]
[366490826,1750288239732,-460.0,0.00021917,6]
[366490827,1750288239741,-460.0,0.00021917,6]
[366490828,1750288239750,-183.15949334,0.00021917,6]
[366490829,1750288239759,-460.0,0.00021917,2]
[366490830,1750288239769,-460.0,0.00021917,6]
[366490831,1750288239778,-425.09696969,0.00021929,2]
[366490832,1750288239788,-500.0,0.00021944,6]
[366490833,1750288239797,-152.63117165,0.00021944,6]
[366490834,1750288239806,-500.0,0.00021944,6]
[366490835,1750288239816,-500.0,0.00021944,6]
[366490836,1750288239825,-500.0,0.00021944,6]
[366490837,1750288239834,-151.0,0.00021944,6]
[366490838,1750288239844,-523.16588728,0.00021944,6]
[366490839,1750288239853,-500.0,0.00021944,6]
[366490840,1750288239862,-151.0,0.00021944,6]
[366490841,1750288239872,-865.0,0.00021944,6]
[366490842,1750288239881,-151.0,0.00021944,6]
[366490843,1750288239890,-151.0,0.00021944,6]
[366490844,1750288239900,-500.0,0.00021944,6]
[366490845,1750288239909,-233.065671,0.00021944,6]
[366490846,1750288239919,-151.0,0.00021944,6]
[366490847,1750288239928,-213.75946109,0.00021944,6]
[366490848,1750288239937,-196.29229518,0.00021944,6]
[366490849,1750288239947,-500.0,0.00021944,6]
[366490850,1750288239956,-500.0,0.00021944,6]
[366490851,1750288239966,-233.36151746,0.00021944,6]
[366490852,1750288239974,-177.1504183,0.00021945,2]
[366490853,1750288239984,-574.2153043,0.00021945,2]
[366490854,1750288239994,-158.9908236,0.00021945,2]
[366490855,1750288240003,-158.9908236,0.00021945,2]
[366490856,1750288240012,-153.0,0.00021945,2]
[366490857,1750288240022,-574.2153043,0.00021945,2]
[366490858,1750288240031,-177.1504183,0.00021945,2]
[366490859,1750288240050,-153.0,0.00021945,2]
[366490860,1750288240062,-177.1504183,0.00021945,2]
[366490861,1750288240072,-574.2153043,0.00021945,2]
[366490862,1750288240082,-158.9908236,0.00021945,2]
[366490863,1750288240092,-354.146424,0.00021945,2]
[366490864,1750288240103,-153.0,0.00021945,2]
[366490865,1750288240113,-574.2153043,0.00021945,2]
[366490866,1750288240123,-158.9908236,0.00021945,2]
[366490867,1750288240133,-574.2153043,0.00021945,2]
[366490868,1750288240143,-158.9908236,0.00021945,2]
[366490869,1750288240154,-154.5715121,0.00021945,2]
[366490870,1750288240164,-574.2153043,0.00021945,2]
[366490871,1750288240174,-153.0,0.00021945,2]
[366490872,1750288240183,-574.2153043,0.00021945,2]
[366490873,1750288240193,-356.9797783,0.00021945,2]
[366490874,1750288240203,-153.0,0.00021945,2]
[366490875,1750288240212,-500.0,0.00021972,6]
[366490876,1750288240221,-500.0,0.00021972,6]
[366490877,1750288240231,-500.0,0.00021972,6]
[366490878,1750288240240,-500.0,0.00021972,6]
[366490879,1750288240250,-151.0,0.00021972,6]
[366490880,1750288240259,-500.0,0.00021972,6]
[366490881,1750288240269,-206.19301128,0.00021972,6]
[366490882,1750288240279,-865.0,0.00021972,6]
[366490883,1750288240289,-245.0,0.00021972,6]
[366490884,1750288240299,-500.0,0.00021972,6]
[366490885,1750288240308,-151.0,0.00021972,6]
[366490886,1750288240318,-500.0,0.00021972,6]
[366490887,1750288240328,-500.0,0.00021972,6]
[366490889,1750288240338,-294.00202288,0.00021991,3]
[366490890,1750288240347,-500.0,0.00021999,6]
[366490891,1750288240356,-500.0,0.00021999,6]
[366490892,1750288240366,-381.52252811,0.00021999,6]
[366490893,1750288240376,-500.0,0.00021999,6]
[366490894,1750288240386,-151.0,0.00021999,6]
[366490895,1750288240395,-367.07771858,0.00021999,6]
[366490896,1750288240405,-865.0,0.00021999,6]
[366490897,1750288240418,-500.0,0.00021999,6]
[366490898,1750288240427,-151.0,0.00021999,6]
[366490899,1750288240437,-500.0,0.00021999,6]
[366490900,1750288240447,-500.0,0.00021999,6]
[366490901,1750288240457,-153.0,0.00022,2]
[366490902,1750288240467,-177.1504183,0.00022,2]
[366490904,1750288240477,-158.9908236,0.00022,2]
[366490906,1750288240487,-153.0,0.00022,2]
[366490908,1750288240497,-574.2153043,0.00022,2]
[366490910,1750288240507,-158.9908236,0.00022,2]
[366490912,1750288240516,-177.1504183,0.00022,2]
[366490914,1750288240525,-153.0,0.00022,2]
[366490916,1750288240535,-574.2153043,0.00022,2]
[366490918,1750288240544,-153.0,0.00022,2]
[366490920,1750288240554,-183.0,0.00022,2]
[366490922,1750288240563,-500.0,0.00022027,6]
[366490924,1750288240573,-500.0,0.00022027,6]
[366490926,1750288240583,-500.0,0.00022027,6]
[366490928,1750288240592,-151.0,0.00022027,6]
[366490931,1750288240611,-865.0,0.00022027,6]
[366490934,1750288240627,-500.0,0.00022027,6]
[366490936,1750288240641,-500.0,0.00022027,6]
[366490939,1750288240654,-500.0,0.00022027,6]
[366490941,1750288240666,-500.0,0.00022054,6]
[366490944,1750288240681,-500.0,0.00022054,6]
[366490946,1750288240695,-500.0,0.00022054,6]
[366490948,1750288240708,-193.43930014,0.00022054,6]
[366490951,1750288240720,-865.0,0.00022054,6]
[366490953,1750288240733,-500.0,0.00022054,6]
[366490955,1750288240746,-500.0,0.00022054,6]
[366490958,1750288240761,-500.0,0.00022054,6]
[366490960,1750288240774,-1688.0,0.00022065,2]
[366490963,1750288240788,-207.4,0.00022065,2]
[366490965,1750288240801,-151.0,0.00022078,2]
[366490967,1750288240812,-152.36586824,0.00022078,2]
[366490970,1750288240827,-151.0,0.00022078,2]
[366490972,1750288240840,-210.8812712,0.00022078,2]
[366490975,1750288240853,-500.0,0.00022078,2]
[366490977,1750288240866,-500.0,0.00022078,2]
[366490979,1750288240880,-500.0,0.00022078,2]
[366490981,1750288240892,-500.0,0.00022078,2]
[366490982,1750288240904,-151.0,0.00022078,2]
[366490983,1750288240914,-5000.0,0.00022078,2]
[366490984,1750288240926,-500.0,0.00022078,2]
[366490985,1750288240938,-500.0,0.00022078,2]
[366490986,1750288240949,-500.0,0.00022078,2]
[366490987,1750288240961,-500.0,0.00022078,2]
[366490988,1750288240973,-151.0,0.00022078,2]
[366490989,1750288240986,-500.0,0.00022078,2]
[366490990,1750288240999,-1414.88350742,0.00022078,2]
[366490991,1750288241011,-500.0,0.00022078,2]
[366490992,1750288241025,-500.0,0.00022078,2]
[366490993,1750288241038,-151.0,0.00022078,2]
[366490994,1750288241050,-500.0,0.00022078,2]
[366490995,1750288241060,-500.0,0.00022078,2]
[366490996,1750288241071,-151.0,0.00022078,2]
[366490997,1750288241087,-500.0,0.00022078,2]
[366490998,1750288241099,-500.0,0.00022078,2]
[366490999,1750288241113,-500.0,0.00022078,2]
[366491000,1750288241125,-151.0,0.00022078,2]
[366491001,1750288241137,-500.0,0.00022078,2]
[366491002,1750288241146,-500.0,0.00022078,2]
[366491003,1750288241157,-500.0,0.00022078,2]
[366491004,1750288241169,-500.0,0.00022078,2]
[366491005,1750288241182,-500.0,0.00022078,2]
[366491006,1750288241194,-500.0,0.00022078,2]
[366491007,1750288241206,-151.0,0.00022078,2]
[366491008,1750288241216,-500.0,0.00022078,2]
[366491009,1750288241227,-500.0,0.00022078,2]
[366491010,1750288241238,-151.0,0.00022078,2]
[366491011,1750288241250,-500.0,0.00022078,2]
[366491012,1750288241262,-500.0,0.00022078,2]
[366491013,1750288241274,-500.0,0.00022078,2]
[366491014,1750288241286,-151.0,0.00022078,2]
[366491016,1750288241300,-166.54991951,0.00022078,2]
[366491017,1750288241311,-500.0,0.00022078,2]
[366491018,1750288241324,-151.0,0.00022078,2]
[366491020,1750288241337,-500.0,0.00022078,2]
[366491023,1750288241352,-500.0,0.00022078,2]
[366491025,1750288241364,-151.0,0.00022078,2]
[366491027,1750288241376,-500.0,0.00022078,2]
[366491030,1750288241388,-151.0,0.00022078,2]
[366491032,1750288241399,-500.0,0.00022078,2]
[366491034,1750288241413,-500.0,0.00022078,2]
[366491036,1750288241424,-500.0,0.00022078,2]
[366491038,1750288241435,-500.0,0.00022078,2]
[366491041,1750288241447,-151.0,0.00022078,2]
[366491043,1750288241460,-500.0,0.00022078,2]
[366491045,1750288241472,-500.0,0.00022078,2]
[366491047,1750288241483,-151.0,0.00022078,2]
[366491050,1750288241495,-500.0,0.00022078,2]
[366491052,1750288241507,-195.52528793,0.00022078,2]
[366491054,1750288241518,-500.0,0.00022078,2]
[366491056,1750288241530,-500.0,0.00022078,2]
[366491059,1750288241543,-25000.0,0.00022078,2]
[366491061,1750288241555,-17806.2727904,0.00022078,2]
[366491063,1750288241566,-316.8047941,0.00022081,6]
[366491065,1750288241578,-500.0,0.00022081,6]
[366491067,1750288241589,-500.0,0.00022081,6]
[366491070,1750288241602,-865.0,0.00022081,6]
[366491072,1750288241613,-500.0,0.00022081,6]
[366491074,1750288241624,-500.0,0.00022081,6]
[366491076,1750288241635,-500.0,0.00022081,6]
[366491078,1750288241646,-16590.75322024,0.00022091,2]
[366491080,1750288241657,-262.69671348,0.00022091,2]
[366491083,1750288241669,-500.0,0.00022109,6]
[366491085,1750288241680,-500.0,0.00022109,6]
[366491087,1750288241691,-865.0,0.00022109,6]
[366491089,1750288241703,-500.0,0.00022109,6]
[366491092,1750288241715,-500.0,0.00022109,6]
[366491094,1750288241727,-500.0,0.00022109,6]
[366491096,1750288241738,-334.99,0.00022113,2]
[366491098,1750288241749,-1750.456,0.0002212,2]
[366491100,1750288241760,-345.17380086,0.00022133,2]
[366491102,1750288241771,-500.0,0.00022136,6]
[366491103,1750288241783,-500.0,0.00022136,6]
[366491104,1750288241794,-865.0,0.00022136,6]
[366491105,1750288241806,-500.0,0.00022136,6]
[366491107,1750288241817,-500.0,0.00022136,6]
[366491109,1750288241828,-329.023099,0.00022136,6]
[366491111,1750288241839,-500.0,0.00022164,6]
[366491112,1750288241851,-500.0,0.00022164,6]
[366491113,1750288241862,-865.0,0.00022164,6]
[366491114,1750288241873,-500.0,0.00022164,6]
[366491116,1750288241884,-500.0,0.00022173,2]
[366491118,1750288241896,-500.0,0.00022191,6]
[366491120,1750288241907,-500.0,0.00022191,6]
[366491121,1750288241918,-865.0,0.00022191,6]
[366491123,1750288241929,-500.0,0.00022191,6]
[366491125,1750288241940,-460.0,0.00022191,6]
[366491127,1750288241952,-460.0,0.00022191,6]
[366491129,1750288241962,-460.0,0.00022191,6]
[366491131,1750288241972,-460.0,0.00022191,6]
[366491132,1750288241980,-460.0,0.00022191,6]
[366491133,1750288241990,-460.0,0.00022191,6]
[366491134,1750288241999,-460.0,0.00022191,6]
[366491135,1750288242009,-460.0,0.00022191,6]
[366491136,1750288242018,-460.0,0.00022191,6]
[366491137,1750288242028,-460.0,0.00022191,6]
[366491138,1750288242037,-460.0,0.00022191,6]
[366491156,1750288242218,-460.0,0.00022191,6]
[366491159,1750288242229,-460.0,0.00022191,6]
[366491161,1750288242239,-460.0,0.00022191,6]
[366491163,1750288242248,-413.6095168,0.00022191,6]
[366491164,1750288242257,-497.84,0.00022191,6]
[366491166,1750288242267,-460.0,0.00022191,6]
[366491168,1750288242276,-460.0,0.00022191,6]
[366491170,1750288242285,-460.0,0.00022191,6]
[366491172,1750288242294,-460.0,0.00022191,6]
[366491174,1750288242303,-566.34,0.00022191,6]
[366491176,1750288242313,-460.0,0.00022191,2]
[366491178,1750288242322,-460.0,0.00022191,6]
[366491180,1750288242332,-360.0,0.00022191,6]
[366491182,1750288242341,-674.57,0.00022191,6]
[366491184,1750288242351,-460.0,0.00022191,6]
[366491186,1750288242360,-460.0,0.00022191,6]
[366491188,1750288242370,-460.0,0.00022191,6]
[366491190,1750288242379,-505.38874906,0.00022191,6]
[366491192,1750288242388,-460.0,0.00022191,6]
[366491194,1750288242398,-440.0,0.00022191,6]
[366491196,1750288242407,-460.0,0.00022191,6]
[366491198,1750288242420,-460.0,0.00022191,6]
[366491200,1750288242430,-460.0,0.00022191,6]
[366491202,1750288242439,-460.0,0.00022191,6]
[366491204,1750288242448,-460.0,0.00022191,6]
[366491206,1750288242458,-460.0,0.00022191,6]
[366491208,1750288242468,-460.0,0.00022191,6]
[366491210,1750288242478,-460.0,0.00022191,6]
[366491212,1750288242487,-1259.89,0.00022191,6]
[366491214,1750288242496,-521.3037717,0.00022191,6]
[366491216,1750288242505,-539.49,0.00022191,6]
[366491218,1750288242514,-460.0,0.00022191,6]
[366491220,1750288242523,-334.16367049,0.00022191,6]
[366491222,1750288242532,-857.84,0.00022191,6]
[366491224,1750288242541,-2359.25,0.00022191,6]
[366491226,1750288242550,-433.40782733,0.00022191,6]
[366491228,1750288242559,-729.85,0.00022191,6]
[366491230,1750288242568,-3535.11,0.00022191,6]
[366491232,1750288242577,-460.0,0.00022191,6]
[366491234,1750288242586,-460.0,0.00022191,6]
[366491236,1750288242595,-708.82,0.00022191,6]
[366491238,1750288242605,-468.48462689,0.00022191,6]
[366491240,1750288242614,-460.0,0.00022191,6]
[366491242,1750288242623,-460.0,0.00022191,6]
[366491244,1750288242632,-460.0,0.00022191,6]
[366491246,1750288242642,-460.0,0.00022191,6]
[366491248,1750288242651,-460.0,0.00022191,6]
[366491250,1750288242660,-601.11,0.00022191,6]
[366491252,1750288242668,-460.0,0.00022191,6]
[366491253,1750288242677,-704.51,0.00022191,6]
[366491255,1750288242686,-460.0,0.00022191,6]
[366491257,1750288242695,-2913.28,0.00022191,6]
[366491259,1750288242704,-340.0,0.00022191,6]
[366491261,1750288242712,-3761.47,0.00022191,6]
[366491263,1750288242721,-1278.45,0.00022191,6]
[366491265,1750288242730,-460.0,0.00022191,6]
[366491267,1750288242737,-440.0,0.00022191,6]
[366491269,1750288242744,-842.53,0.00022191,6]
[366491271,1750288242753,-460.0,0.00022191,6]
[366491273,1750288242762,-460.0,0.00022191,6]
[366491275,1750288242771,-460.0,0.00022191,6]
[366491277,1750288242780,-500.2,0.00022191,6]
[366491279,1750288242790,-612.61,0.00022191,6]
[366491281,1750288242800,-982.38,0.00022191,6]
[366491283,1750288242809,-460.0,0.00022191,6]
[366491285,1750288242818,-460.0,0.00022191,6]
[366491287,1750288242828,-460.0,0.00022191,6]
[366491289,1750288242837,-2124.4,0.00022191,6]
[366491291,1750288242846,-561.15,0.00022191,6]
[366491293,1750288242856,-460.0,0.00022191,6]
[366491295,1750288242865,-460.0,0.00022191,6]
[366491297,1750288242875,-680.8,0.00022191,6]
[366491299,1750288242884,-460.0,0.00022191,6]
[366491301,1750288242894,-460.0,0.00022191,6]
[366491303,1750288242903,-460.0,0.00022191,6]
[366491305,1750288242912,-530.15,0.00022191,6]
[366491307,1750288242922,-460.0,0.00022191,6]
[366491309,1750288242931,-2681.74,0.00022191,6]
[366491311,1750288242940,-460.0,0.00022191,6]
[366491313,1750288242949,-460.0,0.00022191,6]
[366491315,1750288242958,-460.0,0.00022191,6]
[366491317,1750288242967,-460.0,0.00022191,6]
[366491319,1750288242977,-160.36,0.00022191,6]
[366491321,1750288242986,-1450.7,0.00022191,6]
[366491323,1750288242996,-460.0,0.00022191,6]
[366491325,1750288243005,-460.0,0.00022191,6]
[366491326,1750288243014,-460.0,0.00022191,6]
[366491328,1750288243024,-1370.09,0.00022191,6]
[366491330,1750288243033,-460.0,0.00022191,6]
[366491332,1750288243043,-460.0,0.00022191,6]
[366491334,1750288243052,-460.0,0.00022191,6]
[366491337,1750288243062,-1428.41,0.00022191,6]
[366491339,1750288243072,-528.69,0.00022191,6]
[366491340,1750288243081,-514.49,0.00022191,6]
[366491342,1750288243091,-460.0,0.00022191,6]
[366491344,1750288243101,-460.0,0.00022191,6]
[366491348,1750288243110,-460.0,0.00022191,6]
[366491350,1750288243120,-2477.32,0.00022191,6]
[366491351,1750288243129,-717.35,0.00022191,6]
[366491352,1750288243139,-1820.15,0.00022191,6]
[366491353,1750288243149,-460.0,0.00022191,6]
[366491354,1750288243159,-460.0,0.00022191,6]
[366491355,1750288243169,-460.0,0.00022191,6]
[366491356,1750288243178,-460.0,0.00022191,6]
[366491357,1750288243187,-180.0,0.00022191,6]
[366491358,1750288243196,-460.0,0.00022191,6]
[366491359,1750288243205,-460.0,0.00022191,6]
[366491360,1750288243215,-1294.92,0.00022191,6]
[366491361,1750288243224,-460.0,0.00022191,6]
[366491362,1750288243233,-460.0,0.00022191,6]
[366491364,1750288243243,-589.19,0.00022191,2]
[366491366,1750288243252,-460.0,0.00022191,6]
[366491368,1750288243262,-235.52381841,0.00022191,6]
[366491372,1750288243271,-460.0,0.00022191,6]
[366491373,1750288243281,-460.0,0.00022191,6]
[366491374,1750288243290,-746.06,0.00022191,6]
[366491375,1750288243299,-460.0,0.00022191,6]
[366491376,1750288243308,-460.0,0.00022191,6]
[366491377,1750288243317,-460.0,0.00022191,6]
[366491378,1750288243327,-887.24,0.00022191,6]
[366491379,1750288243336,-1211.57,0.00022191,6]
[366491380,1750288243346,-1667.65,0.00022191,6]
[366491381,1750288243355,-460.0,0.00022191,6]
[366491382,1750288243365,-460.0,0.00022191,6]
[366491383,1750288243375,-163.15807421,0.00022191,6]
[366491384,1750288243384,-440.0,0.00022191,6]
[366491385,1750288243394,-460.0,0.00022191,6]
[366491386,1750288243404,-537.29330944,0.00022191,6]
[366491388,1750288243418,-5401.48,0.00022191,6]
[366491389,1750288243427,-494.64,0.00022191,6]
[366491390,1750288243437,-460.0,0.00022191,6]
[366491391,1750288243447,-580.0,0.00022191,6]
[366491392,1750288243458,-746.12,0.00022191,6]